bitfinex/quotes_ETHUSD_20250605
["timestamp","ask_amount","ask_price","bid_price","bid_amount"]
[1749118023364,6.45487873,2607.2,2607.1,22.971823]
[1749118025259,9.81885746,2607.2,2607.1,17.584]
[1749118026273,6.45487873,2607.2,2607.1,22.279182]
[1749118027338,9.81885746,2607.2,2607.1,17.584]
[1749118028052,9.81885746,2607.2,2607.1,17.583]
[1749118028442,10.80074321,2607.2,2607.1,8.64313311]
[1749118028770,10.80074321,2607.2,2607.1,1.583]
[1749118031476,10.80074321,2607.2,2606.8,3.8360897]
[1749118031680,4.07278575,2607.2,2607.1,1.583]
[1749118031879,4.07278575,2607.2,2606.9,16.0]
[1749118032069,4.07278575,2607.2,2607.1,1.583]
[1749118032248,4.07278575,2607.2,2606.9,16.0]
[1749118032779,6.72795746,2607.0,2606.9,16.0]
[1749118035049,6.72795746,2607.0,2606.8,26.0]
[1749118035244,6.72795746,2607.0,2606.8,16.0]
[1749118036289,6.72795746,2607.0,2606.8,19.83609292]
[1749118036489,6.72795746,2607.0,2606.9,1.583]
[1749118038449,3.36397873,2607.0,2606.9,5.41897376]
[1749118038693,1.972,2607.2,2607.1,3.83567949]
[1749118038853,5.33597873,2607.2,2607.1,12.87924]
[1749118039051,1.972,2607.2,2607.1,16.71491949]
[1749118039266,5.33597873,2607.2,2607.1,12.87924]
[1749118039668,5.33597873,2607.2,2607.0,14.816946]
[1749118039951,5.33597873,2607.2,2607.0,13.432946]
[1749118040149,5.33597873,2607.2,2607.1,3.429946]
[1749118040473,8.69995746,2607.2,2607.0,10.0]
[1749118043691,5.33597873,2607.2,2607.0,10.0]
[1749118043981,5.33597873,2607.2,2607.1,1.583]
[1749118047076,1.972,2607.2,2607.1,1.583]
[1749118058017,7.35207686,2607.2,2607.1,1.583]
[1749118058315,4.66203843,2607.2,2607.1,1.583]
[1749118059590,7.35207686,2607.2,2607.1,1.583]
[1749118059806,1.972,2607.2,2607.1,35.41867949]
[1749118060115,7.35207686,2607.2,2607.1,55.28857365]
[1749118061521,5.3335095,2607.2,2607.1,53.19391365]
[1749118062103,5.3335095,2607.2,2607.1,52.84088565]
[1749118062421,5.3335095,2607.2,2607.1,38.49999149]
[1749118062602,5.3335095,2607.2,2607.1,33.35573549]
[1749118063737,5.3335095,2607.2,2607.1,33.86573549]
[1749118065325,5.3335095,2607.2,2607.1,32.50864749]
[1749118065628,5.3335095,2607.2,2607.1,28.672968]
[1749118065786,5.3335095,2607.2,2607.1,26.219594]
[1749118065989,8.695019,2607.2,2607.1,22.929995]
[1749118066214,5.3335095,2607.2,2607.1,22.929995]
[1749118066417,8.695019,2607.2,2607.1,22.929995]
[1749118066629,5.3335095,2607.2,2607.1,26.76567449]
[1749118067620,5.3335095,2607.2,2607.1,22.929995]
[1749118069762,5.3335095,2607.2,2607.1,21.346995]
[1749118069894,9.34824995,2607.2,2607.1,2.092]
[1749118070090,10.48254995,2607.2,2607.1,1.582]
[1749118072222,10.48254995,2607.2,2606.7,8.274]
[1749118072409,3.3615095,2606.8,2606.4,30.0]
[1749118072611,3.3615095,2607.0,2606.7,14.982529]
[1749118072788,3.3615095,2606.8,2606.6,10.443611]
[1749118073144,3.3615095,2606.7,2606.6,10.443611]
[1749118073295,3.3615095,2606.7,2606.6,14.28002625]
[1749118073495,3.3615095,2606.7,2606.6,10.01047625]
[1749118073698,3.3615095,2606.7,2606.6,12.357061]
[1749118074212,3.3615095,2606.7,2606.6,16.19347625]
[1749118074414,3.3615095,2606.7,2606.6,32.19347625]
[1749118075242,3.3615095,2606.7,2606.6,35.95468966]
[1749118077560,3.1063,2607.2,2606.7,16.0]
[1749118077853,3.3615095,2607.0,2606.9,33.83594332]
[1749118078364,3.3615095,2607.0,2606.9,30.0]
[1749118078933,6.723019,2607.0,2606.9,30.0]
[1749118079961,3.3615095,2607.0,2606.9,30.0]
[1749118080166,3.3615095,2607.0,2606.9,28.414395]
[1749118080725,3.1063,2607.2,2606.9,32.25034386]
[1749118080986,3.3615095,2607.0,2606.9,38.967395]
[1749118081140,3.3615095,2607.0,2606.9,28.967395]
[1749118081468,3.3615095,2607.0,2606.9,18.019437]
[1749118081670,3.3615095,2607.0,2606.9,13.002732]
[1749118082354,3.3615095,2607.0,2606.9,8.911343]
[1749118082555,3.3615095,2607.0,2606.9,10.493343]
[1749118082866,3.3615095,2607.0,2606.9,2.493343]
[1749118084833,1.972,2607.2,2607.1,10.0]
[1749118085141,5.3335095,2607.2,2607.0,27.022406]
[1749118085346,5.3335095,2607.2,2607.0,17.022406]
[1749118085865,5.3335095,2607.2,2607.0,16.619782]
[1749118086094,5.3335095,2607.2,2607.0,16.096752]
[1749118086676,5.3335095,2607.2,2607.0,15.316474]
[1749118087955,5.3335095,2607.2,2607.1,10.0]
[1749118088362,5.3335095,2607.2,2607.0,29.875928]
[1749118088573,3.3615095,2607.1,2607.0,17.656017]
[1749118088762,3.3615095,2607.1,2607.0,20.0652449]
[1749118090586,3.3615095,2607.1,2607.0,19.4680099]
[1749118090880,3.3615095,2607.1,2607.0,17.058782]
[1749118091385,1.972,2607.2,2607.1,30.0]
[1749118091588,5.3335095,2607.2,2607.0,19.58212]
[1749118092170,5.3335095,2607.2,2607.1,26.01867949]
[1749118092171,1.972,2607.2,2607.1,26.01867949]
[1749118092371,5.3335095,2607.2,2607.1,56.01867949]
[1749118092574,1.972,2607.2,2607.1,59.88857365]
[1749118092752,5.3335095,2607.2,2607.1,59.88857365]
[1749118093149,4.66099409,2607.2,2607.1,59.88857365]
[1749118094612,7.34998818,2607.2,2607.1,27.92524916]
[1749118094838,7.34998818,2607.2,2607.1,23.764]
[1749118095280,5.33416096,2607.2,2607.1,23.764]
[1749118095607,5.33416096,2607.2,2607.1,33.90566449]
[1749118101730,1.972,2607.2,2607.1,33.90566449]
[1749118102041,1.972,2607.2,2607.1,37.67981259]
[1749118102681,1.972,2607.2,2607.1,29.91581259]
[1749118102935,1.972,2607.2,2607.1,37.67881259]
[1749118114144,1.972,2607.2,2607.1,29.67881259]
[1749118119884,1.972,2607.2,2607.1,37.67881259]
[1749118120321,1.972,2607.2,2607.1,31.67881259]
[1749118121397,1.972,2607.2,2607.1,32.75174434]
[1749118122481,1.972,2607.2,2607.1,33.28697869]
[1749118125810,1.972,2607.2,2607.1,32.75174434]
[1749118126148,1.972,2607.2,2607.1,40.58174434]
[1749118128057,1.972,2607.2,2607.1,40.05881259]
[1749118131752,1.972,2607.2,2607.1,48.32981259]
[1749118131957,1.972,2607.2,2607.1,40.49981259]
[1749118133157,0.02,2607.9,2607.8,3.83464989]
[1749118133369,0.02,2607.9,2607.8,59.05534191]
[1749118134117,0.02,2607.9,2607.8,59.60534191]
[1749118134450,0.02,2607.9,2607.8,62.43226852]
[1749118136093,0.02,2607.9,2607.8,59.07010756]
[1749118137781,0.02,2607.9,2607.8,62.43226852]
[1749118137979,0.02,2607.9,2607.8,70.26226852]
[1749118139195,0.02,2607.9,2607.8,66.90010756]
[1749118139500,0.02,2607.9,2607.8,70.26226852]
[1749118139886,0.02,2607.9,2607.8,69.71827584]
[1749118141468,0.02,2607.9,2607.8,70.79750287]
[1749118141687,0.00191872,2607.9,2607.8,71.19337033]
[1749118143316,0.00191872,2607.9,2607.8,35.79711488]
[1749118143826,0.00191872,2607.9,2607.8,51.79711488]
[1749118143985,0.00191872,2607.9,2607.8,55.70927584]
[1749118144912,0.00191872,2607.9,2607.8,55.15927584]
[1749118145421,0.00191872,2607.9,2607.8,55.70927584]
[1749118145982,0.02,2608.9,2608.8,4.38318]
[1749118146189,0.02,2608.9,2608.8,66.47118]
[1749118146889,0.02,2608.9,2608.8,69.83334096]
[1749118147087,0.02,2608.9,2608.8,62.01334096]
[1749118147325,0.02,2608.9,2608.8,66.47918]
[1749118147511,0.02,2608.9,2608.8,70.2533281]
[1749118148487,0.02,2608.9,2608.8,69.7033281]
[1749118148687,0.02,2608.9,2608.8,70.2533281]
[1749118149528,0.02,2608.9,2608.8,78.0833281]
[1749118151900,0.02,2608.9,2608.8,71.3073281]
[1749118152051,0.02,2608.9,2608.8,77.5323281]
[1749118152381,0.02,2608.9,2608.8,78.0823281]
[1749118152581,0.02,2608.9,2608.8,78.0843281]
[1749118152788,0.02,2608.9,2608.8,70.2543281]
[1749118153094,0.02,2608.9,2608.8,70.2533281]
[1749118153956,0.02,2608.9,2608.8,70.6893023]
[1749118155884,0.02,2608.9,2608.8,70.2533281]
[1749118158997,0.02,2608.9,2608.8,78.0833281]
[1749118161619,0.02,2608.9,2608.8,73.40922323]
[1749118161812,0.02,2608.9,2608.8,67.18322323]
[1749118162003,0.02,2608.9,2608.8,73.40222323]
[1749118162688,1.2568,2609.9,2609.7,25.32889513]
[1749118163008,1.2568,2609.9,2609.8,49.73269637]
[1749118165607,0.02,2609.9,2609.8,53.64485733]
[1749118166420,0.02,2609.9,2609.8,48.68169637]
[1749118166726,0.02,2609.9,2609.8,49.73269637]
[1749118166727,1.2716,2609.9,2609.8,49.73269637]
[1749118167926,1.2716,2609.9,2609.8,30.76160637]
[1749118168094,1.2716,2609.9,2609.8,46.76160637]
[1749118172679,1.2716,2609.9,2609.8,39.5633575]
[1749118173121,1.2716,2609.9,2609.8,43.39506874]
[1749118173316,1.2716,2609.9,2609.8,43.94506874]
[1749118173653,1.2716,2609.9,2609.8,45.6639629]
[1749118173949,1.2716,2609.9,2609.8,49.61506874]
[1749118174555,1.2716,2609.9,2609.8,41.79406874]
[1749118174719,1.2716,2609.9,2609.8,49.61506874]
[1749118175145,1.2716,2609.9,2609.8,43.39506874]
[1749118177351,1.2716,2609.9,2609.8,34.39506874]
[1749118179968,1.2716,2609.9,2609.8,42.65806874]
[1749118180770,1.2716,2609.9,2609.8,48.87706874]
[1749118182044,1.2716,2609.9,2609.8,42.66106874]
[1749118182251,1.2716,2609.9,2609.8,48.87606874]
[1749118182974,1.2716,2609.9,2609.8,39.01805956]
[1749118183757,0.02,2609.9,2609.8,42.88795372]
[1749118185271,0.02,2609.9,2609.8,39.01805956]
[1749118186884,1.2811,2609.9,2609.8,39.01805956]
[1749118187447,1.2811,2609.9,2609.8,31.19905956]
[1749118187887,1.2811,2609.9,2609.8,39.01705956]
[1749118189390,1.2811,2609.9,2609.8,39.01605956]
[1749118192081,1.2811,2609.9,2609.8,31.19905956]
[1749118192394,1.2811,2609.9,2609.8,39.01405956]
[1749118193195,0.02,2609.9,2609.8,42.88395372]
[1749118200880,0.02,2609.9,2609.8,39.01405956]
[1749118208824,0.02,2609.9,2609.8,38.99405956]
[1749118208825,1.3161,2609.9,2609.8,38.99405956]
[1749118213113,1.3161,2609.9,2609.8,57.97487724]
[1749118213417,1.3161,2609.9,2609.8,47.27483324]
[1749118214314,4.66965974,2609.9,2609.8,12.09471124]
[1749118214477,5.13662571,2609.9,2609.8,9.857]
[1749118214808,5.13662571,2609.9,2609.8,13.68871124]
[1749118215009,5.13662571,2609.9,2609.8,29.68871124]
[1749118215516,1.78306597,2609.9,2609.8,39.50846124]
[1749118215874,1.1163993,2609.9,2609.8,39.50846124]
[1749118216191,1.1163993,2609.9,2609.8,37.36442724]
[1749118221831,1.1163993,2609.9,2609.8,33.532716]
[1749118222037,1.1163993,2609.9,2609.8,33.48671124]
[1749118222038,4.46995904,2609.9,2609.8,33.48671124]
[1749118222335,4.00299307,2609.9,2609.8,33.48671124]
[1749118222935,3.95079307,2609.9,2609.8,33.48671124]
[1749118225838,3.95079307,2609.9,2609.8,25.857]
[1749118225995,3.95079307,2609.9,2609.8,29.68871124]
[1749118226200,4.34587238,2609.9,2609.8,25.857]
[1749118226445,4.34587238,2609.9,2609.5,3.83208784]
[1749118226646,4.34587238,2609.9,2608.9,12.09702834]
[1749118226647,4.56645974,2609.7,2609.6,1.594]
[1749118227143,4.56645974,2609.7,2609.6,5.4260049]
[1749118227848,1.1893,2609.6,2609.2,19.64885527]
[1749118228004,4.58235974,2609.3,2609.2,3.83256664]
[1749118228204,4.58235974,2609.3,2609.2,14.32632164]
[1749118228634,4.58235974,2609.3,2609.2,13.45172264]
[1749118228932,4.58235974,2609.3,2609.2,13.96172264]
[1749118230505,4.58235974,2609.3,2609.2,29.96172264]
[1749118232240,1.2288,2609.3,2609.2,29.96172264]
[1749118233348,1.1866,2609.8,2609.4,16.53177]
[1749118233529,3.35355974,2609.7,2609.6,19.83192309]
[1749118233844,4.63205974,2609.7,2609.6,19.8320049]
[1749118234029,4.96741571,2609.7,2609.6,19.8320049]
[1749118234427,4.96741571,2609.7,2609.6,16.0]
[1749118234614,4.96741571,2609.7,2609.6,19.8320049]
[1749118237718,4.96741571,2609.7,2609.6,16.0]
[1749118239951,4.96741571,2609.7,2609.4,3.83221865]
[1749118240293,1.61385597,2609.7,2609.5,10.0]
[1749118240431,1.2785,2609.7,2609.5,3.83212069]
[1749118240957,1.2785,2609.7,2609.6,1.59]
[1749118241533,4.63205974,2609.7,2609.6,1.59]
[1749118244379,1.1882,2609.6,2609.5,10.0]
[1749118244539,1.1882,2609.6,2609.5,5.42315175]
[1749118248384,4.38083336,2610.4,2609.7,3.83185806]
[1749118248385,4.60915974,2609.8,2609.7,3.83185806]
[1749118250339,1.2556,2609.8,2609.7,3.83185806]
[1749118250545,1.2556,2609.8,2609.7,12.62249406]
[1749118252463,4.60915974,2609.8,2609.7,12.62249406]
[1749118253775,3.35355974,2609.8,2609.7,28.62249406]
[1749118255849,3.35355974,2610.0,2609.9,3.83156442]
[1749118256091,1.2559,2610.2,2610.1,3.83127083]
[1749118256092,4.60945974,2610.2,2610.1,3.83127083]
[1749118256386,2.33594597,2610.2,2610.1,5.42127083]
[1749118256597,1.2559,2610.2,2610.1,5.42127083]
[1749118257285,1.2559,2610.2,2610.1,25.95776083]
[1749118257485,1.2559,2610.2,2610.1,19.47504983]
[1749118257786,1.2559,2610.2,2610.1,13.47504983]
[1749118257951,1.2559,2610.2,2610.1,17.57417983]
[1749118258147,1.2559,2610.2,2610.1,15.84800483]
[1749118258452,1.2559,2610.2,2610.1,5.42127083]
[1749118259951,1.2559,2610.2,2610.1,9.00400483]
[1749118260389,1.2559,2610.2,2610.1,5.42127083]
[1749118261692,1.2559,2610.2,2610.1,21.42127083]
[1749118261877,1.71684597,2610.2,2610.1,21.42127083]
[1749118262678,1.71684597,2610.2,2610.1,37.57906983]
[1749118262905,3.35355974,2610.3,2610.2,19.83112405]
[1749118263111,3.35355974,2610.3,2610.2,45.82438105]
[1749118263311,3.35355974,2610.3,2610.2,43.49573105]
[1749118263509,1.2853,2610.8,2610.6,3.83046924]
[1749118263718,3.35355974,2610.7,2610.6,3.83046924]
[1749118263914,10.00744571,2610.7,2610.6,19.83046924]
[1749118264524,10.00744571,2610.7,2610.6,16.0]
[1749118265022,3.81944571,2610.7,2610.6,16.0]
[1749118265229,10.00844571,2610.7,2610.6,16.0]
[1749118266630,0.02,2610.9,2610.7,23.037868]
[1749118266798,0.02,2610.9,2610.8,45.0105616]
[1749118267313,0.02,2610.9,2610.8,25.180318]
[1749118267515,0.02,2610.9,2610.8,29.0105616]
[1749118268526,0.02,2610.9,2610.8,28.5744926]
[1749118268722,0.02,2610.9,2610.8,29.0844926]
[1749118269145,0.02,2610.9,2610.8,32.37598089]
[1749118269291,0.02,2610.9,2610.8,48.37598089]
[1749118276578,0.02,2610.9,2610.8,42.1856926]
[1749118276778,0.02,2610.9,2610.8,24.7291246]
[1749118276950,0.02,2610.9,2610.8,26.3221246]
[1749118278953,0.02,2610.9,2610.8,2.103]
[1749118279156,0.02,2610.9,2610.8,18.103]
[1749118279341,0.47955597,2610.9,2610.8,18.103]
[1749118279953,0.47955597,2610.9,2610.8,2.103]
[1749118280258,1.78785597,2610.9,2610.6,16.0]
[1749118280461,3.35355974,2610.7,2610.6,10.0]
[1749118280673,1.3083,2610.6,2610.4,13.83075034]
[1749118280858,1.3083,2610.6,2610.5,27.593]
[1749118281065,4.66185974,2610.6,2610.5,21.42368377]
[1749118281269,0.47955597,2610.9,2610.8,3.8302436]
[1749118281461,3.37355974,2610.9,2610.8,3.8302436]
[1749118281689,3.37355974,2610.9,2610.8,19.8302436]
[1749118282583,3.37355974,2610.9,2610.8,16.0]
[1749118285979,4.67105974,2610.9,2610.8,16.0]
[1749118286697,10.87205974,2610.9,2610.8,16.0]
[1749118287419,12.67760877,2610.9,2610.8,16.0]
[1749118288099,9.32404903,2610.9,2610.8,16.0]
[1749118288295,9.32304903,2610.9,2610.5,5.42368303]
[1749118288496,3.35355974,2610.6,2610.5,15.39749803]
[1749118289189,3.35355974,2610.6,2610.5,14.41975003]
[1749118290523,3.35355974,2610.6,2610.5,10.29614603]
[1749118291128,3.35355974,2610.6,2610.5,21.423432]
[1749118293934,4.66095974,2610.6,2610.5,17.593]
[1749118296536,4.66095974,2610.6,2610.5,21.42368377]
[1749118297038,5.12705571,2610.6,2610.5,16.0]
[1749118297341,11.32205571,2610.6,2610.4,1.594]
[1749118301499,7.96849597,2610.6,2610.4,1.593]
[1749118301738,3.35355974,2610.5,2610.4,1.593]
[1749118302115,4.48576531,2610.5,2610.4,1.593]
[1749118305323,4.48576531,2610.5,2610.2,8.264]
[1749118305540,3.35355974,2610.3,2610.2,8.264]
[1749118305729,3.35355974,2610.3,2610.2,9.857]
[1749118306031,4.57655974,2610.3,2610.2,9.857]
[1749118306229,5.14743627,2610.3,2610.2,8.264]
[1749118306539,11.89443627,2610.3,2610.2,8.264]
[1749118308941,5.14743627,2610.3,2610.2,8.264]
[1749118309139,10.77155974,2610.3,2610.2,8.264]
[1749118311015,4.57655974,2610.3,2610.2,8.264]
[1749118311421,10.77055974,2610.3,2610.2,8.264]
[1749118314444,9.54655974,2610.3,2610.2,8.264]
[1749118315513,3.35355974,2610.3,2610.2,8.264]
[1749118315741,9.54555974,2610.3,2610.2,8.264]
[1749118316548,9.54455974,2610.3,2610.2,8.264]
[1749118317315,3.35355974,2610.3,2610.2,8.264]
[1749118317517,9.54455974,2610.3,2610.2,8.264]
[1749118318046,3.35355974,2610.3,2610.2,8.264]
[1749118321964,3.35355974,2610.3,2610.0,11.593]
[1749118323101,3.35355974,2610.3,2610.0,15.42438694]
[1749118323284,3.35355974,2610.3,2610.0,11.593]
[1749118324475,3.35355974,2610.3,2610.1,3.83126721]
[1749118324699,3.85022294,2610.9,2610.3,10.21842277]
[1749118324700,5.0598132,2610.8,2610.3,10.21842277]
[1749118324895,6.19,2610.7,2610.3,3.8309269]
[1749118325043,3.35355974,2610.6,2610.4,3.83075862]
[1749118325457,3.35355974,2610.6,2610.4,10.0]
[1749118326069,3.35355974,2610.6,2610.3,3.83088862]
[1749118326372,3.35355974,2610.4,2610.3,3.83088862]
[1749118326558,3.35355974,2610.4,2610.2,10.0]
[1749118326559,3.35355974,2610.4,2610.2,13.83106523]
[1749118326736,3.35355974,2610.4,2610.3,1.593]
[1749118326951,3.35355974,2610.4,2610.3,5.42397728]
[1749118327297,3.35355974,2610.4,2610.3,18.68394028]
[1749118328076,1.2295,2610.8,2610.3,14.852963]
[1749118328280,3.35355974,2610.6,2610.5,14.80582986]
[1749118328481,3.35355974,2610.6,2610.5,11.89069086]
[1749118328669,3.35355974,2610.6,2610.4,3.83075175]
[1749118328962,3.35355974,2610.6,2610.4,13.83075175]
[1749118329512,3.35355974,2610.6,2610.5,8.74810677]
[1749118330057,3.35355974,2610.6,2610.5,4.917423]
[1749118330293,3.35355974,2610.6,2610.5,8.74810677]
[1749118330784,3.35355974,2610.6,2610.5,3.83065461]
[1749118331084,3.35355974,2610.6,2610.5,16.84330961]
[1749118332892,3.35355974,2610.6,2610.5,9.41042261]
[1749118334493,3.35355974,2610.6,2610.5,7.72907761]
[1749118335053,3.35355974,2610.6,2610.5,6.89607761]
[1749118335259,3.35355974,2610.6,2610.5,3.83065461]
[1749118336886,3.35355974,2610.6,2610.5,13.83065461]
[1749118337095,3.35355974,2610.6,2610.4,16.0]
[1749118337303,3.35355974,2610.5,2610.4,19.83083052]
[1749118337859,3.35355974,2610.5,2610.4,10.0]
[1749118338199,3.35355974,2610.5,2610.4,19.83083052]
[1749118341603,3.35355974,2610.5,2610.4,19.83083052]
[1749118342296,3.35355974,2610.5,2610.4,22.84583052]
[1749118344107,3.35355974,2610.5,2610.4,23.65872452]
[1749118344267,3.35355974,2610.5,2610.4,19.827894]
[1749118344472,3.35355974,2610.5,2610.4,19.052538]
[1749118344674,3.35355974,2610.5,2610.4,22.88336852]
[1749118345005,3.35355974,2610.5,2610.4,20.640538]
[1749118345684,3.35355974,2610.5,2610.4,24.47136852]
[1749118346212,3.35355974,2610.5,2610.4,20.640538]
[1749118346715,3.35355974,2610.5,2610.4,24.47136852]
[1749118347607,3.35355974,2610.5,2610.4,17.588]
[1749118347811,3.35355974,2610.5,2610.4,21.41883052]
[1749118348203,3.35355974,2610.5,2610.4,1.588]
[1749118350003,3.35355974,2610.5,2610.1,3.8312634]
[1749118350004,9.25415548,2610.5,2610.1,3.8312634]
[1749118350207,2.06981519,2610.5,2610.2,1.588]
[1749118350372,3.35355974,2610.3,2610.2,1.588]
[1749118350573,3.35355974,2610.3,2610.2,5.41912405]
[1749118350778,3.35355974,2610.3,2610.2,6.94854805]
[1749118351016,3.35355974,2610.3,2610.2,5.41912405]
[1749118351378,3.35355974,2610.3,2610.2,9.11254805]
[1749118351919,4.64785974,2610.3,2610.2,3.486977]
[1749118352111,4.64785974,2610.3,2610.2,1.588]
[1749118352818,10.19627451,2610.3,2610.2,1.588]
[1749118353164,6.36529723,2610.3,2610.2,1.588]
[1749118353917,10.19627451,2610.3,2610.2,1.588]
[1749118357385,0.55,2610.2,2609.9,1.588]
[1749118357589,3.35355974,2610.0,2609.9,4.531762]
[1749118357907,3.35355974,2610.0,2609.9,8.36332642]
[1749118359020,3.35355974,2610.0,2609.9,4.531762]
[1749118359520,3.35355974,2610.0,2609.9,20.531762]
[1749118361523,3.35355974,2610.0,2609.9,17.588]
[1749118362415,3.35355974,2610.0,2609.9,21.812762]
[1749118363245,3.35355974,2610.0,2609.9,20.812762]
[1749118364316,3.35355974,2610.0,2609.9,20.500424]
[1749118365446,4.30731571,2610.0,2609.9,16.0]
[1749118365609,3.83167557,2609.9,2609.6,1.584]
[1749118365809,8.9448178,2609.7,2609.6,1.584]
[1749118366010,8.9448178,2609.7,2609.1,9.848]
[1749118366011,3.83245947,2609.3,2609.1,9.848]
[1749118366216,3.35355974,2609.2,2609.1,9.848]
[1749118367842,3.35355974,2609.1,2609.0,17.584]
[1749118371658,3.35355974,2609.1,2609.0,1.584]
[1749118371862,3.80985571,2609.1,2609.0,1.584]
[1749118373364,3.35355974,2609.1,2609.0,1.584]
[1749118379542,3.35355974,2609.1,2609.0,21.41688616]
[1749118379949,1.7735,2609.4,2609.1,3.83268349]
[1749118380164,3.35355974,2609.2,2609.1,3.83268349]
[1749118380454,3.35355974,2609.2,2609.0,17.584]
[1749118380455,3.35355974,2609.2,2609.0,21.4168098]
[1749118380653,3.35355974,2609.2,2609.0,17.584]
[1749118380865,4.86790452,2609.2,2609.0,17.584]
[1749118381850,1.2293,2609.7,2609.5,3.8320885]
[1749118382161,3.35355974,2609.6,2609.4,3.99714]
[1749118382486,3.35355974,2609.6,2609.4,13.838626]
[1749118382656,3.35355974,2609.6,2609.5,10.0]
[1749118382862,4.69059474,2609.6,2609.4,13.683215]
[1749118383047,4.69059474,2609.6,2609.5,10.0]
[1749118383259,4.69059474,2609.6,2609.4,13.671729]
[1749118383461,3.35355974,2609.5,2609.4,3.671729]
[1749118383859,3.35355974,2609.5,2609.4,2.683215]
[1749118386765,3.35355974,2609.5,2609.3,19.83242022]
[1749118387773,1.2602,2609.4,2609.2,19.83255425]
[1749118387987,1.2602,2609.4,2609.3,1.584]
[1749118388500,11.27921294,2609.6,2609.3,1.584]
[1749118388707,12.79031086,2609.6,2609.3,1.584]
[1749118388901,8.95829792,2609.6,2609.3,1.584]
[1749118389206,3.35355974,2609.4,2609.3,1.584]
[1749118391592,0.02,2610.9,2609.3,1.584]
[1749118391905,3.35355974,2609.7,2609.6,3.8320049]
[1749118392102,3.35355974,2609.7,2609.5,13.83204638]
[1749118392302,3.35355974,2609.7,2609.5,37.748723]
[1749118392488,9.53855974,2609.9,2609.7,3.83179845]
[1749118392689,3.35355974,2609.9,2609.7,3.83179845]
[1749118392869,9.53855974,2609.9,2609.7,3.83179845]
[1749118393268,9.53855974,2609.9,2609.7,3.83185162]
[1749118393469,9.53855974,2609.9,2609.4,30.0]
[1749118393698,9.53855974,2609.9,2609.6,3.83189049]
[1749118393871,9.53855974,2609.9,2609.7,3.8318439]
[1749118394197,3.35355974,2609.9,2609.7,3.8318439]
[1749118394398,3.35355974,2609.9,2609.6,3.83192409]
[1749118394571,3.35355974,2609.9,2609.7,3.83184146]
[1749118394776,3.35355974,2609.9,2609.6,3.83188525]
[1749118396090,3.35355974,2609.7,2609.6,3.8320049]
[1749118396299,3.35355974,2609.7,2609.6,19.8320049]
[1749118401580,1.2862,2610.0,2609.6,16.0]
[1749118401808,3.35355974,2609.7,2609.6,19.83192347]
[1749118406738,3.35355974,2609.7,2609.6,19.83194651]
[1749118407028,4.63975974,2610.0,2609.9,3.83156442]
[1749118407233,3.81753571,2610.0,2609.9,3.83156442]
[1749118409530,3.81753571,2610.0,2609.8,13.83163802]
[1749118409712,3.81753571,2610.0,2609.7,23.84164706]
[1749118409891,3.81753571,2610.0,2609.7,19.83185806]
[1749118410223,1.00005357,2609.9,2609.8,3.83162568]
[1749118412209,3.81753571,2610.0,2609.9,3.83156442]
[1749118412618,3.81753571,2610.0,2609.7,19.8317894]
[1749118412830,3.81753571,2610.0,2609.9,3.83156442]
[1749118414123,3.81753571,2610.0,2609.9,5.41456442]
[1749118415002,3.81753571,2610.0,2609.9,1.583]
[1749118415202,3.81753571,2610.0,2609.9,5.41456442]
[1749118416193,0.46397597,2610.0,2609.9,5.41456442]
[1749118417207,3.35355974,2610.1,2610.0,3.83141762]
[1749118417725,3.35355974,2610.7,2610.6,3.83044949]
[1749118418235,0.02,2610.9,2610.5,1.583]
[1749118418419,3.37355974,2610.9,2610.7,3.83026615]
[1749118418621,3.35355974,2610.8,2610.7,3.83026615]
[1749118418808,3.35355974,2610.8,2610.7,13.83026615]
[1749118420935,0.49053597,2610.9,2610.7,13.83026615]
[1749118421113,0.02,2610.9,2610.8,3.8302436]
[1749118425331,0.02,2610.9,2610.8,13.8302436]
[1749118425734,0.02,2610.9,2610.8,3.8302436]
[1749118427245,0.02,2610.9,2610.8,13.8302436]
[1749118428253,0.02,2610.9,2610.8,3.8302436]
[1749118428807,0.02,2610.9,2610.8,13.8302436]
[1749118429706,0.02,2610.9,2610.8,3.8302436]
[1749118429906,0.02,2610.9,2610.8,10.0]
[1749118430153,0.02,2610.9,2610.8,3.8302436]
[1749118431360,0.02,2610.9,2610.7,3.83025502]
[1749118431503,3.35355974,2610.8,2610.7,21.98934702]
[1749118440274,3.35355974,2610.8,2610.7,19.83025502]
[1749118441211,3.35355974,2610.8,2610.7,21.41225502]
[1749118443998,3.35355974,2610.8,2610.7,25.33068802]
[1749118444959,3.35355974,2610.8,2610.7,21.41225502]
[1749118445710,3.35355974,2610.8,2610.7,5.41225502]
[1749118446274,3.35355974,2610.8,2610.7,1.582]
[1749118446275,5.63491571,2610.8,2610.7,1.582]
[1749118446476,12.36391571,2610.8,2610.3,13.51789]
[1749118446780,4.3804597,2610.7,2610.5,1.582]
[1749118447117,1.2724,2610.3,2609.8,1.582]
[1749118447314,1.2724,2610.3,2609.9,13.83148655]
[1749118447315,6.179,2610.2,2609.9,13.83148655]
[1749118447457,6.179,2610.2,2610.0,3.83140879]
[1749118447663,7.30723155,2610.2,2610.0,3.83140879]
[1749118448077,3.35355974,2610.1,2610.0,3.83140879]
[1749118449193,3.35355974,2610.1,2609.8,5.41369373]
[1749118449695,3.35355974,2610.1,2609.8,5.4136477]
[1749118449877,3.35355974,2610.1,2610.0,3.83141762]
[1749118450702,3.35355974,2610.1,2609.8,1.582]
[1749118451063,4.67275974,2609.9,2609.8,5.41371124]
[1749118455068,6.18,2610.2,2610.1,3.8311698]
[1749118455243,6.73,2610.3,2610.2,3.83112405]
[1749118455436,3.35355974,2610.4,2610.3,3.83097728]
[1749118455437,1.2237,2610.4,2610.3,3.83097728]
[1749118455637,3.35355974,2610.6,2610.5,3.83068377]
[1749118455840,7.4047,2610.7,2610.6,3.83053704]
[1749118456179,6.181,2610.7,2610.6,3.83053704]
[1749118456480,9.53455974,2610.7,2610.6,3.83053704]
[1749118456941,9.53455974,2610.7,2610.5,3.83056414]
[1749118457263,9.53455974,2610.7,2610.6,3.83053704]
[1749118458654,3.35355974,2610.7,2610.6,3.83053704]